bitfinex-derivatives/quotes_SOLF0:USTF0_20241016
["timestamp","ask_amount","ask_price","bid_price","bid_amount"]
[1729075906625,3.24771105,155.97,155.9,15.41]
[1729075906832,5.16,155.97,155.95,3.2065]
[1729075907132,8.43708588,155.97,155.9,15.41]
[1729075908831,3.27708588,155.97,155.9,15.41]
[1729075909134,3.2603029,155.99,155.92,15.41]
[1729075909318,5.14,156.0,155.92,15.41]
[1729075909626,5.14,156.0,155.98,3.2059]
[1729075909934,8.28287809,156.0,155.98,3.2059]
[1729075911131,3.14287809,156.0,155.92,15.41]
[1729075911332,5.14,156.01,155.99,3.2058]
[1729075911742,8.29522248,156.01,155.99,3.2058]
[1729075911929,3.15522248,156.01,155.99,3.2058]
[1729075912231,5.14,156.02,155.99,3.2058]
[1729075912439,5.14,156.02,156.0,3.2054]
[1729075912440,8.36803284,156.02,156.0,3.2054]
[1729075913030,3.22803284,156.02,156.0,3.2054]
[1729075913231,20.55,156.03,156.0,3.2054]
[1729075913628,23.82935291,156.03,156.0,3.2054]
[1729075914244,38.88758951,156.03,156.0,3.2054]
[1729075914445,15.0582366,156.02,156.0,3.2054]
[1729075914828,23.82935291,156.03,156.0,3.2054]
[1729075915033,3.27935291,156.03,156.02,3.2051]
[1729075915231,20.55,156.07,155.98,15.41]
[1729075915632,20.55,156.07,156.03,3.2048]
[1729075915941,20.55,156.07,155.98,15.41]
[1729075916141,20.55,156.07,156.03,3.2048]
[1729075917135,15.41,156.05,156.02,3.2051]
[1729075917333,18.62350756,156.05,156.02,3.2051]
[1729075918444,15.62350756,156.05,156.02,3.2051]
[1729075919749,15.62350756,156.05,156.03,3.2049]
[1729075921237,15.62350756,156.05,155.97,5.14]
[1729075921440,15.41,156.03,155.97,5.14]
[1729075921741,12.41,156.03,155.97,5.14]
[1729075922243,15.66542843,156.03,156.01,3.2052]
[1729075922641,15.66542843,156.03,155.97,5.14]
[1729075923044,15.66542843,156.03,156.0,3.2054]
[1729075923650,15.66542843,156.03,155.97,5.14]
[1729075923851,3.25542843,156.03,156.01,3.2052]
[1729075924150,15.41,156.06,155.97,5.14]
[1729075924346,5.14,156.07,156.01,3.2052]
[1729075924554,15.41,156.05,156.01,3.2052]
[1729075924734,18.6131547,156.05,156.01,3.2052]
[1729075925247,18.6131547,156.05,156.02,3.2051]
[1729075927550,18.6131547,156.05,156.0,3.2055]
[1729075927753,18.6131547,156.05,155.98,5.14]
[1729075928053,9.85,156.04,155.99,9.85]
[1729075928254,9.85,156.04,156.02,3.205]
[1729075928750,13.05155136,156.04,156.02,3.205]
[1729075928949,10.05155136,156.04,156.02,3.205]
[1729075929249,3.20155136,156.04,156.03,3.2049]
[1729075929451,14.96717263,156.11,156.02,5.14]
[1729075929641,9.85,156.09,156.05,3.2043]
[1729075929841,9.85,156.09,156.03,9.85]
[1729075930043,9.85,156.07,156.02,5.14]
[1729075930241,9.85,156.05,156.03,3.2049]
[1729075930442,13.07047079,156.05,156.03,3.2049]
[1729075930846,9.85,156.04,156.01,4.8547]
[1729075931057,9.85,156.04,156.02,3.2051]
[1729075931353,13.06442397,156.04,156.02,3.2051]
[1729075931553,10.06442397,156.04,156.02,3.2051]
[1729075932250,10.06442397,156.04,156.0,7.4698]
[1729075932551,10.06442397,156.04,156.03,3.2049]
[1729075934149,3.21442397,156.04,156.03,3.2049]
[1729075934351,0.21442397,156.04,156.03,3.2049]
[1729075934560,9.85,156.05,156.04,3.2047]
[1729075935050,3.25147925,156.05,156.02,9.85]
[1729075935246,9.85,156.08,156.03,9.85]
[1729075935445,9.85,156.11,156.06,9.85]
[1729075935642,13.00657364,156.11,156.06,9.85]
[1729075936066,13.00657364,156.11,156.08,3.2038]
[1729075936440,13.00657364,156.11,156.06,9.85]
[1729075936647,14.96717263,156.1,156.06,9.85]
[1729075936844,14.96717263,156.09,156.06,12.1791]
[1729075937049,14.96717263,156.08,156.06,12.1791]
[1729075937355,14.96717263,156.1,156.07,9.85]
[1729075937545,14.96717263,156.09,156.07,9.85]
[1729075937746,13.00657364,156.11,156.09,3.2036]
[1729075937953,3.15657364,156.11,156.06,2.3291]
[1729075938144,15.37,156.14,156.06,4.6641]
[1729075938453,15.37,156.14,156.1,3.2034]
[1729075943359,15.37,156.14,156.05,7.5633]
[1729075943360,15.37,156.12,156.05,8.3444]
[1729075943554,15.37,156.08,156.05,8.3444]
[1729075944149,15.37,156.08,156.05,5.14]
[1729075944358,15.50656947,156.08,156.06,3.2043]
[1729075944859,15.50656947,156.08,156.05,5.14]
[1729075945047,15.50656947,156.08,156.01,4.7979]
[1729075945354,15.50656947,156.08,156.02,5.14]
[1729075945554,15.50656947,156.08,156.03,3.2048]
[1729075945747,15.37,156.06,156.02,5.14]
[1729075946456,18.56233355,156.06,156.02,5.14]
[1729075946954,15.56233355,156.06,156.02,5.14]
[1729075947446,15.56233355,156.06,156.03,3.2048]
[1729075949566,12.56233355,156.06,156.03,3.2048]
[1729075952257,9.56233355,156.06,156.03,3.2048]
[1729075952765,3.19233355,156.06,156.04,3.2046]
[1729075953059,14.87559112,156.07,156.04,3.2046]
[1729075953360,15.37,156.08,156.04,3.2046]
[1729075953361,14.87559112,156.06,156.04,3.2046]
[1729075953558,3.26389152,156.05,156.04,3.2046]
[1729075953857,14.87559112,156.06,156.04,3.2046]
[1729075954058,14.87559112,156.07,156.04,3.2046]
[1729075954262,18.64158635,156.08,156.02,5.14]
[1729075954263,14.87559112,156.06,156.05,3.2045]
[1729075954461,14.87559112,156.07,156.02,5.14]
[1729075954760,11.87559112,156.06,156.02,5.14]
[1729075954959,18.64158635,156.08,156.02,5.14]
[1729075955955,3.27158635,156.08,156.02,5.14]
[1729075956150,15.37,156.14,156.04,15.37]
[1729075956649,5.14,156.15,156.07,15.37]
[1729075956855,5.14,156.15,156.08,5.14]
[1729075957057,3.2025,156.15,156.1,3.2034]
[1729075957258,3.2025,156.15,156.08,5.14]
[1729075957857,3.2025,156.15,156.11,3.2032]
[1729075958151,15.37,156.16,156.08,5.14]
[1729075958152,18.5723,156.16,156.08,5.14]
[1729075958346,18.5723,156.16,156.08,11.9998]
[1729075959150,15.37,156.16,156.08,11.9998]
[1729075959354,119.93143907,156.18,156.08,27.3698]
[1729075959952,22.4341,156.19,156.08,27.3698]
[1729075960257,15.37,156.17,156.08,11.9998]
[1729075960456,18.5727,156.14,156.1,3.2034]
[1729075960662,15.37,156.14,156.04,15.37]
[1729075960863,15.37,156.14,156.05,5.14]
[1729075961063,18.5731,156.12,156.08,3.2038]
[1729075961265,21.82250023,156.12,156.08,3.2038]
[1729075961466,18.82250023,156.12,156.08,3.2038]
[1729075961763,3.2035,156.1,156.06,3.2043]
[1729075962862,18.5735,156.1,156.06,3.2043]
[1729075963065,3.2038,156.09,156.06,3.2043]
[1729075964770,15.37,156.1,156.06,3.2043]
[1729075965770,15.37,156.1,156.05,3.2045]
[1729075965961,15.37,156.08,156.03,5.14]
[1729075966567,15.37,156.08,156.04,3.2046]
[1729075967064,2.2625,156.11,156.03,5.14]
[1729075967266,12.37,156.09,156.05,3.2045]
[1729075969474,15.37,156.07,155.99,15.37]
[1729075969660,15.37,156.07,156.0,5.12]
[1729075969861,12.37,156.07,156.0,5.12]
[1729075970470,12.37,156.07,156.02,3.2051]
[1729075970668,15.37,156.05,155.98,12.3845]
[1729075970866,15.37,156.05,155.98,9.9266]
[1729075971073,15.37,156.05,156.0,3.2054]
[1729075971767,15.37,156.05,155.98,5.12]
[1729075971967,15.37,156.05,155.99,3.2057]
[1729075978975,15.37,156.05,156.01,3.2052]
[1729075983577,15.37,156.05,155.94,91.6633]
[1729075983781,2.3776,156.04,155.96,5.14]
[1729075983983,5.66006992,156.04,155.96,5.14]
[1729075984173,2.3776,156.04,155.96,5.14]
[1729075984374,15.37,156.03,155.95,5.14]
[1729075984575,18.6213671,156.03,155.95,5.14]
[1729075985274,18.6213671,156.03,155.97,3.2061]
[1729075985580,15.37,156.01,155.94,2.3161]
[1729075985780,9.86,155.99,155.96,3.2062]
[1729075985981,12.99449339,155.99,155.96,3.2062]
[1729075986584,9.99449339,155.99,155.96,3.2062]
[1729075986781,9.99449339,155.99,155.97,3.2062]
[1729075987174,2.3776,156.04,155.98,9.86]
[1729075987478,13.01341645,156.04,155.98,9.86]
[1729075987673,13.01341645,156.04,155.99,9.86]
[1729075987870,3.15341645,156.04,155.97,5.14]
[1729075988074,20.53,156.06,156.01,3.2052]
[1729075991289,5.14,156.07,155.98,15.39]
[1729075991687,15.39,156.08,155.98,15.39]
[1729075991882,15.39,156.08,156.04,3.2043]
[1729075992087,15.39,156.08,156.01,5.14]
[1729075994091,15.39,156.06,156.0,3.2051]
[1729075994489,15.39,156.06,155.98,5.14]
[1729075994490,3.2044,156.05,156.01,3.205]
[1729075997898,15.39,156.06,155.98,5.14]
[1729075998100,18.594,156.06,156.02,3.2047]
[1729075999000,15.39,156.06,155.98,5.14]
[1729075999202,3.2042,156.05,156.01,3.2049]
[1729076001590,15.39,156.08,155.98,20.53]
[1729076002401,18.5936,156.08,156.04,3.2043]
[1729076003599,3.2039,156.07,155.98,20.53]
[1729076003800,15.39,156.06,155.98,5.14]
[1729076003994,3.2044,156.05,156.0,3.2051]
[1729076004701,3.2044,156.05,156.01,3.2049]
[1729076008103,15.39,156.06,156.02,3.2047]
[1729076008295,15.39,156.06,155.98,5.12]
[1729076008495,15.39,156.08,155.98,20.51]
[1729076009104,18.5938,156.08,156.03,3.2045]
[1729076009503,15.39,156.08,156.03,3.2045]
[1729076009697,3.2039,156.07,156.03,3.2045]
[1729076011114,3.2039,156.07,155.98,20.51]
[1729076011115,15.39,156.08,155.98,20.51]
[1729076011413,3.2042,156.06,156.01,3.2049]
[1729076011701,15.39,156.06,155.97,5.12]
[1729076011902,9.85,156.03,156.0,3.2052]
[1729076012094,13.04228056,156.03,156.0,3.2052]
[1729076012600,10.04228056,156.03,156.0,3.2052]
[1729076013303,13.24688056,156.03,156.0,3.2052]
[1729076013509,13.24688056,156.03,155.99,3.2054]
[1729076013916,6.39688056,156.03,155.99,3.2054]
[1729076015506,6.39688056,156.03,156.0,3.2052]
[1729076016204,3.2046,156.03,156.0,3.2052]
[1729076016812,6.44334567,156.03,156.0,3.2052]
[1729076017006,3.2046,156.03,156.0,3.2052]
[1729076017600,6.41096142,156.03,156.0,3.2052]
[1729076018704,3.20636142,156.03,156.0,3.2052]
[1729076018905,20.51,156.05,156.0,3.2052]
[1729076019420,23.71807967,156.05,156.0,3.2052]
[1729076019918,3.2045,156.04,156.0,3.2052]
[1729076020113,3.20807967,156.05,156.04,3.2044]
[1729076020418,3.2034,156.09,156.01,5.12]
[1729076020615,27.6554,156.11,156.04,3.2043]
[1729076020915,30.92270111,156.11,156.02,5.12]
[1729076021114,30.92270111,156.11,156.02,8.3246]
[1729076021303,30.92270111,156.11,156.02,5.12]
[1729076022312,30.92270111,156.11,156.03,3.2045]
[1729076023620,3.2038,156.07,156.03,3.2045]
[1729076024310,15.39,156.09,156.03,3.2045]
[1729076024717,30.92270111,156.11,156.02,5.12]
[1729076025816,3.2035,156.09,156.02,5.12]
[1729076026726,3.2035,156.09,156.05,3.2041]
[1729076026920,3.2035,156.09,156.02,20.51]
[1729076027724,3.2035,156.09,156.05,3.2041]
[1729076029322,15.39,156.09,156.02,5.12]
[1729076030127,3.2038,156.08,156.04,3.2044]
[1729076030326,3.2038,156.08,156.02,5.12]
[1729076031125,3.2038,156.08,156.03,3.2044]
[1729076032031,3.2038,156.08,156.04,3.2044]
[1729076033933,9.85,156.07,156.04,3.2044]
[1729076034925,6.85,156.07,156.04,3.2044]
[1729076036119,6.85,156.07,156.02,14.97]
[1729076036325,9.85,156.08,156.05,3.2041]
[1729076037732,6.85,156.08,156.03,9.85]
[1729076038318,6.85,156.08,156.05,3.204]
[1729076038818,6.85,156.08,156.06,3.2039]
[1729076039531,9.85,156.09,156.04,9.85]
[1729076039733,3.26730111,156.11,156.05,9.85]
[1729076039938,9.85,156.11,156.06,4.465]
[1729076040128,13.01473951,156.11,156.06,9.585]
[1729076040433,13.01473951,156.11,156.08,3.2035]
[1729076041735,13.01473951,156.11,156.05,6.15941156]
[1729076041736,10.01473951,156.11,156.05,6.15941156]
[1729076042123,3.16473951,156.11,156.07,9.85]
[1729076042329,13.0522,156.15,156.1,13.0532]
[1729076043343,9.85,156.13,156.1,3.2032]
[1729076043841,9.85,156.11,156.08,3.2036]
[1729076044041,13.1260902,156.11,156.08,3.2036]
[1729076044641,3.2760902,156.11,156.08,3.2036]
[1729076044833,9.85,156.11,156.08,3.2036]
[1729076045340,13.1337813,156.11,156.08,3.2036]
[1729076046542,3.2837813,156.11,156.08,3.2036]
[1729076046842,3.2028,156.12,156.08,3.2036]
[1729076047342,6.37570121,156.12,156.08,3.2036]
[1729076048042,16.22570121,156.12,156.08,3.2036]
[1729076048745,13.02290121,156.12,156.08,3.2036]
[1729076049141,16.22580121,156.12,156.08,3.2036]
[1729076049537,9.85,156.1,156.06,8.3239]
[1729076050243,13.0535,156.09,156.06,5.12]
[1729076050450,9.85,156.07,156.04,5.12]
[1729076050834,13.054,156.07,156.04,5.12]
[1729076051448,10.054,156.07,156.04,8.3244]
[1729076051849,3.2033,156.1,156.05,9.85]
[1729076052048,9.85,156.11,156.07,3.2037]
[1729076052349,13.02290121,156.12,156.07,9.85]
[1729076052542,9.85,156.12,156.09,3.2034]
[1729076052941,3.14959066,156.12,156.09,3.2034]
[1729076053243,13.0527,156.13,156.09,3.2034]
[1729076053744,16.17850107,156.13,156.09,3.2034]
[1729076053947,6.32850107,156.13,156.09,3.2034]
[1729076055242,3.12580107,156.13,156.08,5.12]
[1729076055542,7.382,156.17,156.08,20.51]
[1729076055743,10.62668085,156.17,156.08,20.51]
[1729076055943,3.2023,156.15,156.08,20.51]
[1729076056549,3.2023,156.15,156.1,3.2031]
[1729076057354,3.2021,156.16,156.11,3.2028]
[1729076058049,3.2022,156.15,156.08,22.8387]
[1729076058648,3.2022,156.15,156.1,3.2032]
[1729076060246,3.2025,156.14,156.1,3.2032]
[1729076060954,15.39,156.15,156.1,3.2032]
[1729076061348,20.89668085,156.17,156.08,5.1]
[1729076061545,3.2022,156.15,156.11,3.2028]
[1729076064460,3.2022,156.15,156.1,3.2031]
[1729076066459,3.2026,156.13,156.09,3.2033]
[1729076066651,15.39,156.15,156.07,7.3861]
[1729076067158,3.2027,156.13,156.09,3.2033]
[1729076067555,3.2032,156.1,156.06,3.2039]
[1729076067760,12.39,156.13,156.06,3.2039]
[1729076068261,14.7345,156.13,156.05,5.1]
[1729076068560,15.39,156.11,156.05,8.3041]
[1729076069546,3.2035,156.09,156.05,8.3041]
[1729076069752,6.34945218,156.09,156.05,8.3041]
[1729076070258,3.14595218,156.09,156.05,8.3041]
[1729076070456,15.39,156.11,156.05,8.3041]
[1729076071061,3.2035,156.09,156.05,8.3041]
[1729076071362,6.43021623,156.09,156.05,8.3041]
[1729076071552,3.2035,156.09,156.05,8.3041]
[1729076072064,6.3609899,156.09,156.05,8.3041]
[1729076073565,6.3609899,156.09,156.05,3.2041]
[1729076074174,3.1574899,156.09,156.05,3.2041]
[1729076074462,15.39,156.11,156.05,3.2041]
[1729076075868,9.84,156.09,156.05,3.2041]
[1729076076070,13.05421703,156.09,156.05,3.2041]
[1729076076766,10.05421703,156.09,156.05,3.2041]
[1729076079469,7.05421703,156.09,156.05,3.2041]
[1729076080668,7.05421703,156.09,156.04,9.84]
[1729076081273,7.05421703,156.09,156.05,3.2041]
[1729076081974,4.05421703,156.09,156.05,3.2041]
[1729076084565,1.05421703,156.09,156.05,3.2041]
[1729076084867,9.84,156.09,156.05,3.2041]
[1729076085269,12.98466415,156.09,156.05,3.2041]
[1729076088979,9.98466415,156.09,156.06,3.2039]
[1729076089778,3.14466415,156.09,156.06,3.2039]
[1729076089969,9.84,156.1,156.06,3.2039]
[1729076090276,13.07697516,156.1,156.07,3.2037]
[1729076092579,10.07697516,156.1,156.07,3.2037]
[1729076094082,10.07697516,156.1,156.04,14.94]
[1729076094978,7.07697516,156.1,156.07,3.2037]
[1729076097379,7.07697516,156.1,156.04,14.94]
[1729076097681,4.07697516,156.1,156.05,3.2041]
[1729076097877,9.84,156.07,156.04,5.1]
[1729076098386,9.84,156.08,156.04,5.1]
[1729076098583,9.84,156.08,156.05,3.2042]
[1729076099079,13.11051282,156.08,156.05,3.2042]
[1729076101572,10.11051282,156.08,156.05,3.2042]
[1729076104283,7.11051282,156.08,156.05,3.2042]
[1729076108189,4.11051282,156.08,156.05,3.2042]
[1729076109075,3.27051282,156.08,156.07,13.0438]
[1729076109289,5.1,156.16,156.07,9.84]
[1729076109583,2.262,156.17,156.13,9.84]
[1729076109788,2.357,156.19,156.13,9.84]
[1729076109789,12.197,156.19,156.13,13.0426]
[1729076109980,2.357,156.19,156.13,9.84]
[1729076110181,2.357,156.19,156.14,3.2023]
[1729076110389,12.197,156.19,156.14,3.2023]
[1729076110987,9.84,156.17,156.13,13.0425]
[1729076111789,6.84,156.17,156.13,13.0425]
[1729076112378,6.84,156.17,156.13,3.2025]
[1729076112582,9.84,156.15,156.1,5.1]
[1729076112779,9.84,156.12,156.0,1.60228636]
[1729076112991,9.84,156.11,156.08,3.2036]
[1729076113294,13.08161064,156.11,156.08,3.2036]
[1729076113490,3.24161064,156.11,156.08,3.2036]
[1729076113684,5.1,156.16,156.09,3.2033]
[1729076113986,9.84,156.14,156.09,3.2033]
[1729076114591,9.84,156.14,156.1,3.2031]
[1729076115192,5.1,156.16,156.11,3.2028]
[1729076115193,9.84,156.15,156.11,3.2028]
[1729076116388,5.1,156.16,156.1,9.84]
[1729076116688,9.84,156.16,156.1,14.94]
[1729076116884,9.84,156.12,156.1,5.1]
[1729076117086,9.84,156.11,156.1,5.1]
[1729076117288,13.07582499,156.11,156.07,5.1]
[1729076117486,6.43902499,156.11,156.07,8.3036]
[1729076117693,3.23582499,156.11,156.07,14.94]
[1729076117993,9.84,156.12,156.07,14.94]
[1729076118197,3.2029,156.12,156.08,3.2036]
[1729076118394,9.84,156.11,156.08,3.2036]
[1729076118690,13.0742198,156.11,156.08,3.2036]
[1729076118881,16.2772198,156.11,156.08,3.2036]
[1729076119087,13.2772198,156.11,156.08,3.2036]
[1729076121786,10.2772198,156.11,156.08,3.2036]
[1729076122090,3.2342198,156.11,156.07,14.94]
[1729076122294,3.2028,156.12,156.09,3.2033]
[1729076124301,9.84,156.13,156.09,3.2033]
[1729076125103,3.2028,156.12,156.09,3.2033]
[1729076126998,9.84,156.13,156.09,3.2033]
[1729076129695,6.84,156.13,156.09,3.2033]
[1729076129893,5.08,156.16,156.09,3.2033]
[1729076129894,5.08,156.16,156.11,3.2028]
[1729076130188,9.84,156.15,156.09,9.84]
[1729076130996,5.08,156.16,156.09,9.84]
[1729076131294,9.84,156.14,156.1,3.2031]
[1729076135496,9.84,156.13,156.1,3.2031]
[1729076136396,9.84,156.14,156.1,3.2031]
[1729076138198,5.08,156.16,156.1,3.2031]
[1729076138397,5.61783348,156.19,156.11,13.0429]
[1729076138603,15.45783348,156.19,156.14,9.84]
[1729076139102,15.45783348,156.19,156.14,4.07039862]
[1729076139289,15.45783348,156.19,156.14,0.86819862]
[1729076140100,5.61783348,156.19,156.15,3.2021]
[1729076140290,15.45783348,156.19,156.15,3.2021]
[1729076140495,15.45783348,156.19,156.13,9.84]
[1729076140901,9.84,156.17,156.11,5.08]
[1729076141101,9.84,156.17,156.11,14.92]
[1729076141399,9.84,156.17,156.12,3.2028]
[1729076141604,9.84,156.14,156.09,5.08]
[1729076141804,9.84,156.14,156.09,14.92]
[1729076142310,9.84,156.14,156.1,3.2031]
[1729076142606,6.84,156.14,156.1,3.2031]
[1729076142910,9.84,156.13,156.09,3.2033]
[1729076145498,6.84,156.13,156.09,3.2033]
[1729076145698,6.84,156.13,156.09,3.2034]
[1729076149610,6.84,156.13,156.07,14.92]
[1729076149804,6.84,156.13,156.1,3.2031]
[1729076152713,4.437,156.16,156.1,3.2031]
[1729076152912,9.84,156.13,156.1,3.2031]
[1729076153308,9.84,156.12,156.08,3.2035]
[1729076153710,9.84,156.12,156.07,14.92]
[1729076153910,9.84,156.12,156.09,3.2034]
[1729076154703,9.517,156.16,156.09,9.84]
[1729076154906,9.84,156.12,156.03,4.6861]
[1729076155209,9.84,156.11,156.06,13.0438]
[1729076155411,13.06257113,156.11,156.06,13.0438]
[1729076155808,9.84,156.09,156.03,4.6861]
[1729076156006,9.84,156.07,156.03,5.08]
[1729076156208,13.1144809,156.07,156.03,5.08]
[1729076157008,13.1144809,156.07,156.04,3.2044]
[1729076158218,3.2744809,156.07,156.04,13.0444]
[1729076158513,9.84,156.08,156.04,13.0444]
[1729076158914,12.99115808,156.08,156.04,13.0444]
[1729076159711,12.99115808,156.08,156.04,9.84]
[1729076159920,12.99115808,156.08,156.05,3.2042]
[1729076160618,3.15115808,156.08,156.05,3.2042]
[1729076160918,9.84,156.09,156.05,3.2042]
[1729076161118,12.98090646,156.09,156.05,3.2042]
[1729076162218,9.84,156.07,156.02,9.84]
[1729076162416,9.84,156.07,156.02,14.92]
[1729076162921,13.08400564,156.07,156.02,14.92]
[1729076164427,13.08400564,156.07,156.04,3.2044]
[1729076165523,13.08400564,156.07,156.02,14.92]
[1729076166716,13.08400564,156.07,156.04,3.2043]
[1729076167429,3.24400564,156.07,156.06,13.044]
[1729076167721,2.2489,156.1,156.06,9.84]
[1729076167926,12.0889,156.1,156.06,9.84]
[1729076168124,15.2239173,156.1,156.07,3.2037]
[1729076168328,12.9750173,156.1,156.07,3.2037]
[1729076169527,9.84,156.08,156.03,9.84]
[1729076170022,9.84,156.08,156.05,3.2041]
[1729076170226,3.20448708,156.08,156.02,5.08]
[1729076170425,9.84,156.06,156.02,5.08]
[1729076170625,13.12205894,156.06,156.04,3.2044]
[1729076171827,9.84,156.05,156.01,3.2049]
[1729076172022,9.84,156.03,155.98,14.92]
[1729076172326,9.84,156.03,156.0,3.2051]
[1729076172731,13.0292776,156.03,155.98,14.92]
[1729076172925,13.0292776,156.03,155.99,3.2053]
[1729076173121,13.0292776,156.03,155.98,14.92]
[1729076173525,13.0292776,156.03,156.01,3.205]
[1729076180129,13.0292776,156.03,155.99,9.84]
[1729076180329,3.1892776,156.03,156.02,3.2048]
[1729076180524,9.84,156.04,156.02,3.2048]
[1729076180730,9.84,156.04,156.0,9.84]
[1729076180930,3.23736855,156.04,156.03,3.2046]
[1729076181235,9.84,156.06,156.03,3.2046]
[1729076181733,13.09852782,156.06,156.03,3.2046]
[1729076184738,9.84,156.04,156.03,3.2046]
[1729076185435,13.02030004,156.04,156.03,3.2046]
[1729076188440,3.18030004,156.04,156.03,3.2046]
[1729076188641,9.84,156.05,156.03,3.2046]
[1729076189246,13.00129827,156.05,156.03,3.2046]
[1729076192145,9.84,156.04,156.03,3.2046]
[1729076192836,13.03035554,156.04,156.03,3.2046]
[1729076203854,13.03035554,156.04,156.02,3.2047]
[1729076210052,13.03035554,156.04,155.99,3.2053]
[1729076210254,13.03035554,156.04,155.98,14.92]
[1729076210846,13.03035554,156.04,156.02,3.2047]
[1729076213660,3.19035554,156.04,156.03,3.2046]
[1729076213848,9.84,156.05,156.03,3.2046]
[1729076214053,13.01753128,156.05,156.03,3.2046]
[1729076215753,13.01753128,156.05,156.0,9.84]
[1729076215955,9.84,156.04,156.02,3.2047]
[1729076216450,9.84,156.03,156.01,3.205]
[1729076217163,13.00126963,156.03,156.01,3.205]
[1729076219161,13.00126963,156.03,155.97,5.06]
[1729076219162,9.84,156.02,155.98,3.2055]
[1729076219363,9.84,156.0,155.98,3.2055]
[1729076219957,9.84,156.0,155.96,85.4435327]
[1729076220168,9.84,156.0,155.99,3.2054]
[1729076220667,13.10130169,156.0,155.99,3.2054]
[1729076224071,13.10130169,156.0,155.98,3.2056]
[1729076227672,9.84,155.99,155.95,5.06]
[1729076227972,9.84,155.97,155.93,5.06]
[1729076228366,9.84,155.97,155.95,3.2061]
[1729076229080,14.20314281,155.96,155.95,3.2061]
[1729076229267,14.20314281,156.0,155.92,14.9]
[1729076229472,9.84,155.98,155.93,9.84]
[1729076229769,14.20314281,155.97,155.93,9.84]
[1729076229975,14.20314281,155.97,155.95,3.2061]
[1729076230178,9.84,155.98,155.95,3.2061]
[1729076230376,9.84,155.97,155.95,3.2061]
[1729076232767,9.84,155.93,155.9,3.2072]
[1729076233468,9.84,155.93,155.91,3.2071]
[1729076233964,9.84,155.93,155.9,3.2072]
[1729076237073,9.84,155.91,155.89,3.2074]
[1729076237475,13.08126089,155.91,155.89,3.2074]
[1729076240382,13.08126089,155.91,155.77,3.13922951]
[1729076240383,9.84,155.9,155.71,19.25]
[1729076240679,9.84,155.88,155.82,9.84]
[1729076240984,9.84,155.88,155.86,3.2081]
[1729076241478,9.84,155.89,155.84,9.84]
[1729076241678,9.84,155.89,155.85,9.84]
[1729076241886,9.84,155.89,155.87,3.2078]
[1729076243083,9.84,155.88,155.85,3.2082]
[1729076243681,9.84,155.87,155.85,3.2082]
[1729076243881,9.84,155.87,155.81,138.58851845]
[1729076244086,9.84,155.87,155.81,148.42851845]
[1729076244475,9.84,155.87,155.84,3.2084]
[1729076244980,9.84,155.87,155.85,3.2083]
[1729076245380,9.84,155.87,155.71,69.28]
[1729076245588,9.84,155.82,155.8,3.2092]
[1729076245776,9.84,155.82,155.77,14.9]
[1729076245976,12.98601418,155.82,155.77,14.9]
[1729076246182,12.98601418,155.82,155.8,3.2092]
[1729076248577,3.14601418,155.82,155.81,3.2091]